bitfinex/quotes_ETHUSD_20240713
["timestamp","ask_amount","ask_price","bid_price","bid_amount"]
[1720903489222,1.09217415,3172.3,3172.1,2.3719]
[1720903489430,1.09217415,3172.2,3172.1,3.130857]
[1720903489617,1.09217415,3172.2,3172.1,5.337597]
[1720903490657,1.0921304,3172.2,3172.1,5.337597]
[1720903491005,1.09212204,3172.2,3172.1,5.337597]
[1720903493916,2.32105916,3172.7,3172.2,2.20666]
[1720903494112,1.09209902,3172.6,3172.2,2.20666]
[1720903494453,1.09209902,3172.5,3172.2,2.20666]
[1720903494750,1.09209902,3172.4,3172.2,2.20666]
[1720903495257,1.09209902,3172.3,3172.2,2.20666]
[1720903497308,1.09208151,3172.3,3172.2,2.20666]
[1720903497742,1.09208151,3172.3,3172.2,3.01066]
[1720903498637,1.09208151,3172.3,3172.2,8.82466]
[1720903498947,1.09208151,3172.3,3172.2,11.82466]
[1720903500612,2.31948306,3173.1,3172.6,2.2984]
[1720903500837,1.09199078,3173.0,3172.6,2.2984]
[1720903501154,1.09199078,3172.9,3172.6,2.2984]
[1720903501464,1.09199078,3172.8,3172.6,2.2984]
[1720903501615,1.09199078,3173.0,3172.6,2.2984]
[1720903502036,1.09199078,3173.1,3172.6,2.2984]
[1720903502355,1.09199078,3173.0,3172.6,2.2984]
[1720903502558,1.09199078,3173.1,3172.6,2.2984]
[1720903502712,1.09199078,3173.0,3172.6,2.2984]
[1720903502915,1.09199078,3172.9,3172.6,2.2984]
[1720903503116,2.3725,3173.3,3172.6,2.2984]
[1720903503310,3.41070731,3173.2,3172.6,2.2984]
[1720903503510,1.0919914,3173.1,3172.6,2.2984]
[1720903503718,1.09199083,3173.0,3172.6,2.2984]
[1720903503939,1.09199083,3172.9,3172.6,2.2984]
[1720903504145,1.09199083,3173.1,3172.6,2.2984]
[1720903504361,1.09199083,3173.0,3172.6,2.2984]
[1720903504665,2.31845068,3173.2,3172.6,2.2984]
[1720903504666,1.09199083,3172.9,3172.6,2.2984]
[1720903504963,1.09199083,3172.8,3172.6,2.2984]
[1720903505149,1.09199083,3173.1,3172.6,2.2984]
[1720903505472,1.09199083,3173.0,3172.6,2.2984]
[1720903505762,1.09199083,3172.9,3172.6,2.2984]
[1720903505921,1.09199083,3173.1,3172.6,2.2984]
[1720903506125,2.31845068,3173.2,3172.6,2.2984]
[1720903506126,1.09199083,3173.0,3172.6,2.2984]
[1720903506328,1.09199083,3173.1,3172.7,0.804]
[1720903506523,1.09198815,3173.0,3172.6,2.20637]
[1720903506749,1.09198815,3172.9,3172.6,2.20637]
[1720903506981,1.09198815,3173.2,3172.6,2.957886]
[1720903507124,1.09198815,3173.1,3172.6,2.957886]
[1720903507324,1.09198815,3173.2,3172.6,2.20637]
[1720903509879,2.3177458,3173.4,3172.6,2.20637]
[1720903509880,2.31702826,3173.4,3172.6,2.20637]
[1720903510078,1.09196113,3173.3,3172.6,2.20637]
[1720903510285,1.09196113,3173.2,3172.6,2.20637]
[1720903510769,3.40898939,3173.3,3172.6,2.20637]
[1720903511076,1.09196113,3173.2,3172.6,2.20637]
[1720903511446,1.09196113,3173.3,3172.6,2.20637]
[1720903512942,1.09196113,3173.3,3172.7,2.20632]
[1720903513173,1.09197652,3173.2,3172.7,2.20632]
[1720903513390,1.09197652,3173.1,3172.7,2.20632]
[1720903513680,1.09197652,3173.3,3172.7,2.20632]
[1720903513882,1.09197652,3173.2,3172.7,2.20632]
[1720903514068,1.09197652,3173.1,3172.8,2.4653]
[1720903514302,2.31668528,3173.4,3172.8,2.4653]
[1720903514303,1.09197652,3173.0,3172.8,2.4653]
[1720903514486,1.09197652,3172.9,3172.8,2.4653]
[1720903514887,1.09197652,3172.9,3172.8,2.932462]
[1720903515920,3.1765,3173.5,3172.8,2.932462]
[1720903516118,1.09196853,3173.4,3172.8,4.67155]
[1720903516275,1.09196853,3173.3,3172.8,4.67155]
[1720903516473,1.09196853,3173.2,3172.9,2.20617]
[1720903516680,1.09187418,3173.1,3172.9,2.20617]
[1720903516981,2.4204,3173.7,3173.0,0.467147]
[1720903517291,1.09187504,3173.6,3172.9,2.20617]
[1720903517485,1.09187504,3173.5,3173.0,2.20611]
[1720903517700,1.09187504,3173.6,3173.1,2.4653]
[1720903518015,1.09187504,3173.5,3173.1,4.67133]
[1720903518222,1.09187504,3173.4,3173.1,4.67133]
[1720903518431,1.09187504,3173.3,3173.1,4.67133]
[1720903518717,1.09187504,3173.2,3173.1,4.67133]
[1720903519838,1.09185898,3173.2,3173.1,4.67133]
[1720903522051,1.09185898,3173.2,3173.1,5.43948]
[1720903522536,1.09185898,3173.2,3173.1,6.24348]
[1720903523119,2.4204,3174.0,3173.1,6.24348]
[1720903523327,1.09175774,3173.9,3173.1,6.24348]
[1720903523532,1.09175774,3173.8,3173.1,6.24348]
[1720903523835,1.09175774,3173.7,3173.1,6.24348]
[1720903523999,1.09175774,3173.6,3173.2,0.624348]
[1720903524336,1.09175774,3173.5,3173.1,6.24348]
[1720903524540,1.09175774,3173.6,3173.1,2.4653]
[1720903526437,2.4204,3173.7,3173.1,2.4653]
[1720903526603,1.09179506,3173.6,3173.1,2.4653]
[1720903526804,1.09179506,3173.5,3172.9,12.89542]
[1720903527024,1.09179506,3173.4,3172.9,12.89542]
[1720903527195,1.09179506,3173.6,3173.0,1.289542]
[1720903529907,2.4204,3173.7,3173.0,1.289542]
[1720903530224,1.09180433,3173.6,3173.0,1.289542]
[1720903530536,1.09180363,3173.5,3173.0,1.289542]
[1720903530731,1.09180363,3173.4,3173.0,1.289542]
[1720903530936,1.09180363,3173.6,3173.1,1.4184962]
[1720903531101,1.09180363,3173.5,3173.1,1.4184962]
[1720903531431,1.09180363,3173.4,3173.1,1.4184962]
[1720903531639,1.09180363,3173.3,3173.2,2.4653]
[1720903531838,1.09180363,3173.3,3173.2,2.85367962]
[1720903533035,1.09181103,3173.3,3173.2,2.85367962]
[1720903533413,1.09177128,3173.3,3173.2,2.85367962]
[1720903536355,0.804,3174.1,3173.2,2.85367962]
[1720903536534,1.09176739,3174.0,3173.2,2.85367962]
[1720903536718,1.09176739,3173.9,3173.2,2.85367962]
[1720903536940,1.09176739,3173.8,3173.2,2.85367962]
[1720903537153,1.09176739,3173.7,3173.2,2.85367962]
[1720903537323,1.09176739,3173.6,3173.2,2.85367962]
[1720903537524,1.09176739,3173.5,3173.3,0.72822058]
[1720903537720,1.09176739,3173.4,3173.2,2.4653]
[1720903538021,1.09176739,3173.3,3173.2,2.4653]
[1720903539716,0.804,3174.1,3173.2,2.4653]
[1720903539914,1.09175793,3173.3,3173.2,2.4653]
[1720903540141,1.09175793,3173.3,3173.2,5.47527]
[1720903543245,1.09169497,3173.3,3173.2,5.47527]
[1720903543678,2.4133,3174.2,3173.2,5.47527]
[1720903543981,1.09169489,3174.1,3173.2,5.47527]
[1720903544131,1.09169489,3174.0,3173.5,2.3683]
[1720903544362,3.29185634,3174.8,3173.1,1.4184962]
[1720903544363,1.09169489,3173.9,3173.8,5.37784]
[1720903545241,1.09169489,3173.9,3173.8,7.58339]
[1720903545479,1.09169489,3173.9,3173.8,8.13339]
[1720903545639,1.09169489,3173.9,3173.8,8.946729]
[1720903546339,3.2173,3175.0,3174.0,2.20537]
[1720903546559,1.09144,3174.9,3174.1,1.354]
[1720903546773,1.09144608,3174.8,3174.1,1.354]
[1720903546974,1.09144608,3174.7,3174.1,1.354]
[1720903547181,1.09144608,3174.6,3174.1,1.354]
[1720903547369,5.53047327,3175.0,3174.1,1.354]
[1720903547370,1.09144608,3174.5,3174.1,1.354]
[1720903547576,1.09144608,3174.4,3174.1,1.354]
[1720903547783,1.09144608,3174.3,3174.1,1.99443503]
[1720903547963,1.09144608,3174.2,3174.1,1.99443503]
[1720903548148,1.09144608,3174.2,3174.1,4.19977503]
[1720903548350,1.09144608,3174.2,3174.1,6.56807503]
[1720903548583,1.09144608,3174.2,3174.1,4.36273503]
[1720903549680,3.2173,3175.0,3174.1,4.36273503]
[1720903549981,1.09143207,3174.9,3174.1,4.36273503]
[1720903550186,1.09143207,3174.9,3174.2,0.6568105]
[1720903552969,2.4133,3175.0,3174.2,0.6568105]
[1720903553292,1.09145604,3174.9,3174.2,0.6568105]
[1720903553475,1.09145604,3174.8,3174.2,0.6568105]
[1720903553681,1.09145604,3174.7,3174.2,0.6568105]
[1720903553978,1.09145604,3174.6,3174.3,0.50195455]
[1720903554177,1.09145604,3174.5,3174.3,0.50195455]
[1720903554380,1.09145604,3174.4,3174.3,0.50195455]
[1720903556385,1.09145604,3174.4,3173.9,7.42]
[1720903556386,1.09144308,3174.4,3173.9,10.7009]
[1720903556579,1.09144308,3174.3,3173.9,10.7009]
[1720903556892,1.09151249,3174.2,3173.9,3.2809]
[1720903557067,1.09151249,3174.1,3174.0,0.32809]
[1720903557274,1.09151249,3174.5,3174.0,0.32809]
[1720903557608,1.09151249,3174.4,3174.0,0.32809]
[1720903557788,1.09151249,3174.5,3174.0,0.32809]
[1720903557997,1.09151249,3174.4,3174.0,0.32809]
[1720903558172,2.2639,3174.6,3174.0,0.32809]
[1720903558173,1.09151249,3174.3,3174.0,0.32809]
[1720903558510,1.09151249,3174.2,3174.0,0.32809]
[1720903558668,1.09151249,3174.5,3174.1,0.360899]
[1720903558868,1.09151249,3174.5,3173.9,3.2809]
[1720903559640,2.2639,3174.6,3173.9,3.2809]
[1720903559797,1.09152725,3174.4,3173.9,3.2809]
[1720903559993,1.09152725,3174.3,3173.9,3.2809]
[1720903560234,1.09152725,3174.5,3173.9,3.2809]
[1720903560438,1.09152725,3174.4,3174.0,0.32809]
[1720903560599,1.09152725,3174.3,3174.0,0.32809]
[1720903560800,1.09152725,3174.5,3174.0,0.32809]
[1720903561023,1.09152725,3174.4,3174.0,0.32809]
[1720903561299,1.09152725,3174.3,3174.0,0.32809]
[1720903561519,1.09152725,3174.2,3174.0,0.32809]
[1720903561726,3.0679,3174.9,3174.1,0.360899]
[1720903561727,1.09152725,3174.7,3174.1,0.360899]
[1720903561938,1.09150254,3174.6,3174.1,0.360899]
[1720903562149,3.0679,3174.9,3173.9,3.2809]
[1720903562297,1.09150685,3174.5,3173.9,3.2809]
[1720903562496,1.09150685,3174.4,3173.9,3.2809]
[1720903562696,1.09150685,3174.3,3173.9,3.2809]
[1720903562896,1.09150685,3174.2,3173.9,3.2809]
[1720903563146,1.09150685,3174.8,3174.0,0.32809]
[1720903563297,1.09150685,3174.7,3174.0,0.32809]
[1720903563501,1.09150685,3174.8,3174.0,0.32809]
[1720903565419,3.40319284,3174.8,3174.0,0.32809]
[1720903565621,1.0915423,3174.7,3174.0,0.32809]
[1720903565811,1.0915423,3174.6,3174.0,0.32809]
[1720903566027,1.0915423,3174.5,3174.0,0.32809]
[1720903566214,1.0915423,3174.4,3174.0,0.32809]
[1720903566518,1.0915423,3174.3,3174.0,0.32809]
[1720903566734,1.0915423,3174.2,3174.0,0.32809]
[1720903566914,1.0915423,3174.1,3174.0,0.32809]
[1720903567297,1.0915423,3174.1,3174.0,2.80499]
[1720903568940,2.2639,3174.8,3174.0,2.80499]
[1720903569114,1.0914539,3174.7,3174.0,2.4769]
[1720903569445,1.0914539,3174.6,3174.0,2.4769]
[1720903569601,1.0914539,3174.5,3174.0,2.4769]
[1720903569802,1.0914539,3174.4,3174.0,2.4769]
[1720903570002,1.0914539,3174.3,3174.0,3.025545]
[1720903570203,1.0914539,3174.2,3174.0,3.025545]
[1720903570405,1.0914539,3174.7,3174.0,3.025545]
[1720903570705,1.0914539,3174.6,3174.0,2.4769]
[1720903570916,1.0914539,3174.7,3174.0,2.4769]
[1720903571244,1.0914539,3174.6,3174.0,2.4769]
[1720903571432,2.2639,3174.8,3174.0,2.4769]
[1720903571433,1.0914539,3174.7,3174.0,2.4769]
[1720903571618,1.0914539,3174.6,3174.0,2.4769]
[1720903571806,1.0914539,3174.7,3174.0,2.4769]
[1720903572003,1.09147424,3174.6,3174.0,2.4769]
[1720903572345,2.2639,3174.8,3174.0,2.4769]
[1720903572638,1.09147448,3174.7,3174.0,2.4769]
[1720903572822,2.80194493,3174.8,3174.0,2.4769]
[1720903572823,1.09147448,3174.6,3174.0,2.4769]
[1720903573137,1.09147448,3174.5,3174.0,2.4769]
[1720903573438,1.09147448,3174.4,3174.0,2.4769]
[1720903573640,1.09147448,3174.3,3174.0,2.4769]
[1720903573826,1.09147448,3174.2,3174.0,3.246092]
[1720903574037,1.09147448,3174.1,3174.0,3.246092]
[1720903575730,1.09149419,3174.1,3174.0,3.246092]
[1720903576031,1.09149419,3174.7,3174.0,3.246092]
[1720903576344,1.09149312,3174.6,3174.0,2.4769]
[1720903576651,1.09149312,3174.5,3174.0,2.4769]
[1720903576813,1.09149312,3174.4,3174.0,2.4769]
[1720903577007,1.09149312,3174.3,3174.0,2.4769]
[1720903577209,1.09149312,3174.2,3174.0,2.4769]
[1720903577517,1.09149312,3174.1,3174.0,3.246092]
[1720903579146,1.09149277,3174.1,3174.0,3.246092]
[1720903579571,4.57801945,3174.8,3174.0,3.246092]
[1720903579572,2.2639,3174.8,3174.0,3.246092]
[1720903579770,2.2639,3174.8,3174.0,2.4769]
[1720903579771,1.09151142,3174.7,3174.0,2.4769]
[1720903579987,1.09151142,3174.6,3174.0,2.4769]
[1720903580263,1.09151142,3174.5,3174.0,2.4769]
[1720903580467,1.09151142,3174.4,3174.0,2.4769]
[1720903580665,1.09151142,3174.3,3174.0,2.4769]
[1720903580969,1.09151142,3174.2,3174.0,2.4769]
[1720903581149,1.09151142,3174.1,3174.0,2.4769]
[1720903582368,4.57838558,3174.8,3174.0,2.4769]
[1720903582574,1.09149123,3174.7,3174.0,2.4769]
[1720903582731,1.09149123,3174.6,3174.0,2.4769]
[1720903582930,1.09149123,3174.5,3174.0,2.4769]
[1720903583132,1.09149123,3174.4,3174.0,2.4769]
[1720903583369,1.09149123,3174.3,3174.0,3.025545]
[1720903583665,1.09149123,3174.2,3174.0,3.025545]
[1720903583868,1.09149123,3174.6,3174.1,0.804]
[1720903584173,1.09149731,3174.5,3174.1,0.804]
[1720903584378,1.09149731,3174.4,3174.1,0.804]
[1720903584584,1.09149731,3174.3,3174.1,0.804]
[1720903584769,1.09149731,3174.2,3174.1,0.804]
[1720903585084,1.09149731,3174.2,3174.1,1.13209]
[1720903585839,2.31701199,3174.7,3174.1,1.13209]
[1720903586040,3.40849747,3174.6,3174.1,0.804]
[1720903586342,1.09148548,3174.5,3174.1,0.804]
[1720903586546,1.09148548,3174.4,3174.1,0.804]
[1720903586748,1.09148548,3174.3,3174.0,2.4769]
[1720903586950,1.09148548,3174.2,3174.0,2.4769]
[1720903587151,1.09148548,3174.5,3174.0,2.4769]
[1720903587406,1.09148548,3174.4,3174.0,2.4769]
[1720903587577,1.09148548,3174.3,3174.0,2.80499]
[1720903587877,1.09148548,3174.2,3174.0,2.4769]
[1720903588099,1.09148548,3174.5,3174.2,2.392]
[1720903588393,1.09148548,3174.5,3173.5,9.6257]
[1720903588394,1.09137112,3174.4,3174.3,2.942]
[1720903588541,1.09137112,3174.4,3174.3,6.24541]
[1720903589285,1.09129649,3174.4,3174.3,6.24541]
[1720903589686,1.09130366,3174.4,3174.3,6.24541]
[1720903589986,1.09130366,3174.4,3174.3,2.6862]
[1720903590172,1.09130366,3174.4,3174.3,3.4902]
[1720903590368,1.09130366,3174.9,3174.3,3.4902]
[1720903590571,1.09130366,3174.8,3174.3,3.196]
[1720903590779,4.76584372,3175.0,3174.3,3.196]
[1720903590780,1.09130366,3174.7,3174.3,3.196]
[1720903591084,1.09130366,3174.6,3174.3,3.196]
[1720903591287,1.09130366,3174.9,3174.3,3.196]
[1720903592281,1.09134964,3174.8,3174.3,3.196]
[1720903592588,1.09135031,3174.7,3174.3,3.196]
[1720903592943,1.09135031,3174.6,3174.3,3.196]
[1720903593152,1.09135031,3174.9,3174.3,3.736134]
[1720903593456,1.09135031,3174.8,3174.3,3.736134]
[1720903593662,1.09135031,3174.7,3174.3,3.736134]
[1720903593872,1.09135031,3174.6,3174.3,3.736134]
[1720903594073,1.09135031,3174.5,3174.3,1.344134]
[1720903594283,2.31783843,3175.1,3174.5,0.804]
[1720903594588,1.09131367,3175.0,3174.5,0.804]
[1720903594749,1.09131367,3174.9,3174.5,0.804]
[1720903594950,1.09131367,3174.8,3174.5,0.804]
[1720903595210,1.09131367,3174.7,3174.5,0.804]
[1720903595493,1.09131367,3174.6,3174.5,0.804]
[1720903595790,1.091304,3174.6,3174.5,3.650317]
[1720903598695,1.091304,3174.6,3174.5,6.405387]
[1720903599066,1.091304,3174.6,3174.5,8.610397]
[1720903599067,1.09127384,3174.6,3174.5,8.610397]
[1720903599465,3.2954,3175.5,3174.6,2.20499]
[1720903599684,3.40704359,3175.4,3174.6,2.20499]
[1720903599868,1.09125267,3175.3,3174.6,2.20499]
[1720903600277,1.09125267,3175.3,3174.6,3.0660217]
[1720903601686,1.09125267,3175.3,3174.8,2.314]
[1720903601919,1.09125267,3175.4,3174.8,2.314]
[1720903602106,1.09123481,3175.2,3174.8,2.314]
[1720903602310,1.09123481,3175.3,3174.8,2.314]
[1720903602458,1.09119393,3175.2,3174.8,2.314]
[1720903602651,1.09119393,3175.1,3174.8,2.314]
[1720903602853,1.09119393,3175.0,3174.8,2.314]
[1720903603055,1.09119393,3174.9,3174.8,2.314]
[1720903605764,1.09118678,3174.9,3174.8,2.314]
[1720903606295,1.09118678,3174.9,3174.8,2.93870136]
[1720903606497,1.09118678,3174.9,3174.8,5.14356136]
[1720903607472,1.09118678,3174.9,3174.8,2.314]
[1720903607793,1.09118678,3174.9,3174.6,4.51894]
[1720903608002,1.09118678,3174.8,3174.6,4.51894]
[1720903608231,2.4914,3175.4,3174.6,4.51894]
[1720903608232,1.09118678,3175.3,3174.6,4.51894]
[1720903608427,1.09118678,3175.2,3174.6,4.51894]
[1720903608733,1.09118678,3175.1,3174.6,4.51894]
[1720903608886,1.09118678,3175.3,3174.6,4.51894]
[1720903609222,1.0912108,3175.2,3174.6,4.51894]
[1720903609539,2.4914,3175.4,3174.6,4.51894]
[1720903609702,1.09121087,3175.3,3174.6,4.51894]
[1720903609879,1.09121087,3175.2,3174.6,4.51894]
[1720903610084,1.09121087,3175.1,3174.6,4.51894]
[1720903610279,1.09121087,3175.3,3174.6,4.51894]
[1720903611788,2.33387196,3175.3,3174.6,2.314]
[1720903612122,1.09124889,3175.2,3174.6,2.314]
[1720903612326,1.24266109,3175.3,3174.5,0.55]
[1720903612536,1.09127527,3175.1,3174.5,3.55]
[1720903612701,1.09127527,3175.0,3174.5,3.55]
[1720903612900,1.09127527,3175.2,3174.5,3.55]
[1720903614732,1.09127527,3175.2,3174.5,3.0]
[1720903614906,1.5299428,3175.2,3174.4,2.314]
[1720903615102,3.58887527,3175.1,3174.4,2.314]
[1720903615424,1.09127527,3175.0,3174.4,2.314]
[1720903615763,1.09140375,3174.9,3174.4,2.314]
[1720903616046,1.09140375,3174.8,3174.4,2.314]
[1720903616357,1.09140375,3174.7,3174.4,2.314]
[1720903616510,2.4976,3175.1,3174.4,2.314]
[1720903616511,1.09140375,3175.0,3174.4,2.314]
[1720903616847,1.09140375,3174.9,3174.4,2.314]
[1720903617008,1.09140375,3175.0,3174.4,2.314]
[1720903617722,1.09140375,3174.9,3174.4,3.118]
[1720903617917,2.4976,3175.1,3174.5,3.0]
[1720903617918,1.09140375,3175.0,3174.5,3.0]
[1720903618110,1.09140375,3174.9,3174.5,3.0]
[1720903618330,1.09140375,3174.8,3174.4,2.314]
[1720903618507,1.09140375,3174.7,3174.4,2.314]
[1720903618742,1.09140375,3174.6,3174.4,2.314]
[1720903618911,3.3016,3175.1,3174.4,2.314]
[1720903619114,3.3016,3175.1,3174.2,10.42925]
[1720903619115,0.804,3174.9,3174.2,9.8692]
[1720903619353,1.09140373,3174.8,3174.2,9.8692]
[1720903619508,1.09144138,3174.7,3174.2,9.8692]
[1720903619856,1.09144138,3174.6,3174.2,9.8692]
[1720903620041,1.09144138,3174.8,3174.2,9.8692]
[1720903620350,1.09144138,3174.8,3174.2,11.157056]
[1720903620552,1.09144138,3174.8,3174.4,0.804]
[1720903620847,1.09144138,3174.7,3174.4,0.804]
[1720903621051,1.09144138,3174.6,3174.4,0.804]
[1720903621358,1.09144138,3174.5,3174.2,14.166316]
[1720903621555,1.09138832,3174.5,3174.3,1.4166316]
[1720903621711,1.09138832,3174.4,3174.3,1.4166316]
[1720903621912,1.09138913,3174.4,3174.3,1.4166316]
[1720903622536,1.09138913,3174.4,3174.2,6.746316]
[1720903622739,1.09138913,3174.3,3174.2,6.746316]
[1720903622942,1.09138913,3174.3,3174.2,7.296316]
[1720903623948,1.09138913,3174.3,3174.2,5.091056]
[1720903624160,1.09138913,3174.3,3174.2,3.8032]
[1720903624752,1.09141838,3174.3,3174.2,3.8032]
[1720903627340,1.09141838,3174.3,3173.9,2.4492]
[1720903627550,3.3016,3174.7,3173.8,3.0]
[1720903627551,1.09141838,3174.2,3173.8,3.0]
[1720903627855,3.3016,3174.7,3173.8,3.0]
[1720903627856,1.09141838,3174.1,3173.8,3.0]
[1720903628028,3.3016,3174.7,3173.8,4.587886]
[1720903628241,1.09155408,3174.6,3173.8,4.587886]
[1720903628446,1.09155408,3174.5,3173.8,4.587886]
[1720903628763,1.09155408,3174.4,3173.8,5.391886]
[1720903628970,1.09155408,3174.3,3173.8,5.391886]
[1720903629154,1.09155408,3174.2,3173.8,5.391886]
[1720903629360,1.09155408,3174.1,3173.8,5.391886]
[1720903629525,1.09155408,3174.0,3173.8,5.391886]
[1720903629726,5.61729817,3174.7,3173.8,4.587886]
[1720903629727,1.09155408,3173.9,3173.8,4.587886]
[1720903630799,1.09155408,3173.9,3173.8,1.587886]
[1720903631067,1.09155408,3173.9,3173.7,2.4492]
[1720903631275,1.09155408,3173.8,3173.7,2.4492]
[1720903631474,1.09156849,3173.8,3173.7,2.4492]
[1720903631838,3.3016,3174.7,3173.7,2.4492]
[1720903632042,1.42173882,3174.6,3173.7,2.4492]
[1720903632336,1.09157882,3174.5,3173.7,2.4492]
[1720903634334,1.09156095,3174.4,3173.7,2.4492]
[1720903634536,1.09156095,3174.3,3173.8,0.804]
[1720903634736,0.33016,3174.6,3173.8,0.804]
[1720903634974,1.09155649,3174.5,3173.8,0.804]
[1720903636471,1.09155888,3174.4,3173.8,0.804]
[1720903636849,1.09155888,3174.3,3173.8,0.804]
[1720903637050,1.09155888,3174.2,3173.8,1.349886]
[1720903637246,1.09155888,3174.6,3173.8,1.349886]
[1720903637459,1.09155888,3174.5,3173.9,2.3534]
[1720903637665,1.09155888,3174.4,3173.9,2.3534]
[1720903637864,1.09155888,3174.3,3173.3,7.42]
[1720903638081,0.804,3174.2,3173.4,5.10919]
[1720903638319,1.09162761,3174.1,3173.5,2.20576]
[1720903638590,1.09162761,3174.0,3173.6,0.55]
[1720903638749,1.09162761,3174.3,3173.6,0.55]
[1720903639353,1.09162761,3174.3,3173.5,3.00976]
[1720903639574,1.09162761,3174.3,3173.5,4.515076]
[1720903641493,3.1197,3174.4,3173.5,4.515076]
[1720903641696,1.09164136,3174.3,3173.5,2.309316]
[1720903641853,3.1197,3174.4,3173.5,2.309316]
[1720903642187,1.09164809,3174.3,3173.6,0.6868536]
[1720903642376,1.09164809,3174.2,3173.6,0.6868536]
[1720903642574,1.09164809,3174.1,3173.7,2.3534]
[1720903642760,1.09164809,3174.0,3173.7,2.3534]
[1720903642961,3.1197,3174.4,3173.7,2.3534]
[1720903642962,1.09164809,3173.9,3173.7,2.3534]
[1720903643297,1.09164809,3173.8,3173.7,2.88835696]
[1720903644353,1.09163607,3173.8,3173.7,2.88835696]
[1720903644781,1.09160364,3173.8,3173.7,3.69235696]
[1720903645106,1.09160364,3173.8,3173.7,4.24235696]
[1720903645107,1.09155452,3173.8,3173.7,4.24235696]
[1720903648117,2.3157,3174.6,3173.7,4.24235696]
[1720903648403,1.09157147,3174.5,3173.7,4.24235696]
[1720903648611,1.09157147,3174.4,3173.8,0.55]
[1720903648764,1.09157147,3174.3,3173.8,0.55]
[1720903648966,1.09157147,3174.2,3173.8,0.55]
[1720903649265,1.09157147,3174.1,3173.8,1.04292106]
[1720903649466,1.09157147,3174.0,3173.8,1.04292106]
[1720903649668,1.09157147,3173.9,3173.8,1.04292106]
[1720903651379,2.3157,3174.6,3173.8,1.04292106]
[1720903651707,1.09157562,3174.5,3173.8,0.55]
[1720903651869,2.3157,3174.6,3173.8,0.55]
[1720903652071,1.09158524,3174.5,3173.8,0.55]
[1720903652273,1.09158524,3174.4,3173.8,0.55]
[1720903652468,1.09158524,3174.3,3173.8,0.55]
[1720903652681,1.09158524,3174.4,3173.8,0.55]
[1720903653002,1.51271376,3174.4,3173.8,0.55]
[1720903653209,1.09158524,3174.3,3173.8,0.55]
[1720903654718,0.42112852,3174.4,3173.8,0.55]
[1720903655026,1.091614,3174.3,3173.8,0.55]
[1720903655223,1.091614,3174.2,3173.8,0.55]
[1720903655517,0.42112852,3174.4,3173.8,0.55]
[1720903655518,1.091614,3174.1,3173.8,0.55]
[1720903655718,1.091614,3174.0,3173.8,0.55]
[1720903655903,1.091614,3173.9,3173.8,0.55]
[1720903660210,1.091614,3173.9,3173.5,0.55]
[1720903660409,1.091614,3173.8,3173.5,0.55]
[1720903660723,1.091614,3173.7,3173.5,1.66179]
[1720903660905,1.091614,3174.2,3173.5,1.66179]
[1720903661109,1.091614,3174.1,3173.5,0.55]
[1720903661308,1.091614,3174.0,3173.5,0.55]
[1720903661484,1.09167561,3173.9,3173.5,0.55]
[1720903661690,1.09167561,3173.8,3173.5,0.55]
[1720903661910,4.80631595,3174.3,3173.5,0.55]
[1720903662112,1.61442042,3174.2,3173.5,0.55]
[1720903662309,1.09167597,3174.1,3173.5,0.55]
[1720903662591,1.09167597,3174.0,3173.5,0.55]
[1720903662900,1.09167597,3173.9,3173.5,0.55]
[1720903663101,1.09167597,3173.8,3173.5,0.55]
[1720903663298,1.09167597,3173.7,3173.5,0.55]
[1720903663502,1.09167597,3173.6,3173.5,0.55]
[1720903664028,1.09167597,3173.6,3173.5,0.91979]
[1720903664793,1.09169161,3173.6,3173.5,0.91979]
[1720903667027,1.09169161,3173.6,3173.5,3.26369]
[1720903668241,1.09160546,3173.6,3173.5,3.26369]
[1720903671413,1.09161202,3173.6,3173.5,3.26369]
[1720903673316,1.09161202,3173.6,3173.5,2.8939]
[1720903674912,1.09164549,3173.6,3173.5,2.8939]
[1720903675226,2.49,3174.3,3173.5,2.8939]
[1720903675426,1.09164547,3173.6,3173.5,2.8939]
[1720903677905,1.09164416,3173.6,3173.5,2.8939]
[1720903678112,2.49,3174.3,3173.5,2.8939]
[1720903678328,3.65975977,3174.2,3173.5,2.8939]
[1720903678553,1.09164334,3174.1,3173.5,2.8939]
[1720903678711,2.56811643,3174.2,3173.5,2.8939]
[1720903678712,1.09164334,3174.0,3173.5,2.8939]
[1720903679048,1.09164334,3173.9,3173.5,2.8939]
[1720903679213,1.09164334,3174.1,3173.5,2.8939]
[1720903681152,1.0916229,3174.0,3173.5,2.8939]
[1720903681341,1.0916229,3173.9,3173.5,2.8939]
[1720903681645,1.0916229,3173.8,3173.5,2.8939]
[1720903681849,1.0916229,3174.1,3173.5,2.8939]
[1720903682049,1.0916229,3174.0,3173.5,2.8939]
[1720903682248,1.0916229,3174.1,3173.5,2.8939]
[1720903683467,1.0916229,3174.0,3173.5,2.8939]
[1720903683670,1.0916229,3174.1,3173.5,2.8939]
[1720903683971,1.0916229,3174.0,3173.5,2.8939]
[1720903684168,1.0916294,3173.9,3173.5,2.8939]
[1720903684371,1.0916294,3173.8,3173.5,2.8939]
[1720903684666,1.09162996,3173.7,3173.5,2.8939]
[1720903684872,1.09162996,3173.6,3173.5,4.226273]
[1720903685388,1.09162996,3174.1,3173.5,2.8939]
[1720903685561,1.09162996,3174.0,3173.5,2.8939]
[1720903685861,1.09162996,3173.9,3173.5,2.8939]
[1720903686067,1.09162996,3174.1,3173.5,2.8939]
[1720903686232,1.09162996,3174.0,3173.5,2.8939]
[1720903686579,1.09162996,3173.9,3173.5,2.8939]
[1720903686734,1.09162996,3174.1,3173.5,2.8939]
[1720903687093,1.09162996,3174.0,3173.5,2.8939]
[1720903687271,2.49,3174.3,3173.5,2.8939]
[1720903687432,3.66031545,3174.2,3173.5,2.8939]
[1720903687774,1.0916416,3174.1,3173.5,2.8939]
[1720903687968,1.0916416,3174.0,3173.5,2.8939]
[1720903688274,1.0916416,3173.9,3173.5,2.8939]
[1720903688447,1.0916416,3174.0,3173.5,2.8939]